bitfinex/quotes_BTCUSD_20260104
["timestamp","ask_amount","ask_price","bid_price","bid_amount"]
[1767529653907,0.06572901,91284.0,91279.0,0.02768665]
[1767529654144,0.01095494,91283.0,91280.0,0.04967402]
[1767529654354,0.06572901,91284.0,91283.0,0.04967402]
[1767529654518,0.01095482,91284.0,91283.0,0.04867502]
[1767529654681,0.06572822,91285.0,91283.0,0.04867502]
[1767529654882,0.06572751,91286.0,91283.0,0.04867502]
[1767529655080,0.01095482,91284.0,91280.0,0.04967402]
[1767529655283,0.07572964,91283.0,91280.0,0.04967402]
[1767529655517,0.02095493,91283.0,91280.0,0.04967402]
[1767529655729,0.06573368,91278.0,91275.0,0.07159402]
[1767529655934,0.06573368,91278.0,91275.0,0.0716652]
[1767529656137,0.01095554,91278.0,91275.0,7.118e-05]
[1767529656314,0.05477891,91276.0,91275.0,7.118e-05]
[1767529657165,0.01095602,91274.0,91270.0,0.06063052]
[1767529657395,0.0109559,91275.0,91274.0,0.000999]
[1767529657767,0.06573541,91275.0,91271.0,0.01095638]
[1767529658069,0.06573541,91275.0,91270.0,0.11541277]
[1767529658291,0.06573469,91276.0,91271.0,0.06573802]
[1767529658565,0.0656451,91278.0,91276.0,0.000999]
[1767529658764,0.05477831,91277.0,91276.0,0.000999]
[1767529658966,0.06573472,91276.0,91272.0,0.11541136]
[1767529659270,0.01095578,91276.0,91272.0,0.11541152]
[1767529659709,0.06573397,91277.0,91276.0,0.000999]
[1767529659841,0.06564471,91278.0,91276.0,0.000999]
[1767529660043,0.01095566,91277.0,91273.0,0.01095614]
[1767529660238,0.01086711,91277.0,91273.0,0.01095614]
[1767529660577,0.06564559,91277.0,91273.0,0.01095614]
[1767529660878,0.06573478,91276.0,91272.0,0.06063028]
[1767529661176,0.06573484,91276.0,91273.0,0.04967402]
[1767529661676,0.0109559,91275.0,91269.0,0.06573924]
[1767529661905,0.00992881,91273.0,91269.0,0.06063064]
[1767529662054,0.00984025,91273.0,91269.0,0.06063064]
[1767529662497,0.00984025,91273.0,91270.0,0.06063052]
[1767529662674,0.06573691,91273.0,91270.0,0.04967402]
[1767529662876,0.01095602,91274.0,91270.0,0.06063052]
[1767529663080,0.06573553,91275.0,91271.0,0.01095638]
[1767529663693,0.01095578,91276.0,91275.0,0.000999]
[1767529663896,0.06573469,91276.0,91275.0,0.000999]
[1767529664095,0.06573469,91276.0,91275.0,1e-08]
[1767529664358,0.06573281,91279.0,91276.0,0.00115874]
[1767529664633,5.138e-05,91279.0,91276.0,0.05083276]
[1767529664797,0.0110068,91279.0,91276.0,0.05083276]
[1767529664995,5.138e-05,91279.0,91276.0,0.0668933]
[1767529665655,0.0110068,91279.0,91276.0,0.00115874]
[1767529665986,0.0657842,91279.0,91274.0,0.11541008]
[1767529666388,0.0657842,91279.0,91275.0,0.0109559]
[1767529666658,0.06569336,91279.0,91274.0,0.11541008]
[1767529667242,0.06560251,91279.0,91274.0,0.11541008]
[1767529667443,0.06560251,91279.0,91275.0,0.04967402]
[1767529667743,0.0109553,91280.0,91275.0,0.04967402]
[1767529668116,0.01095542,91279.0,91275.0,0.04967402]
[1767529668323,0.05477788,91278.0,91275.0,0.04967402]
[1767529668955,0.0109553,91280.0,91276.0,0.01095578]
[1767529669131,0.06573228,91280.0,91275.0,0.11540883]
[1767529669344,0.01095542,91279.0,91275.0,0.11540883]
[1767529669549,0.01095518,91281.0,91279.0,0.00115874]
[1767529669713,0.06573081,91282.0,91279.0,0.05083276]
[1767529669918,0.05477598,91281.0,91279.0,0.05083276]
[1767529671176,0.01095506,91282.0,91279.0,0.00115874]
[1767529671332,0.01066873,91282.0,91279.0,0.00015974]
[1767529671670,0.06573181,91280.0,91276.0,0.01095578]
[1767529671889,0.06564325,91280.0,91276.0,0.01095578]
[1767529672291,0.06564325,91280.0,91275.0,0.0657354]
[1767529672491,0.0109553,91280.0,91276.0,0.06573455]
[1767529673034,0.06573195,91280.0,91276.0,0.01095578]
[1767529674316,0.06573195,91280.0,91276.0,0.06573461]
[1767529674521,0.0109553,91280.0,91276.0,0.06573461]
[1767529674695,0.07669459,91285.0,91280.0,0.05593479]
[1767529674903,0.02192,91285.0,91280.0,0.05493567]
[1767529675107,0.0328747,91285.0,91280.0,0.01111504]
[1767529675287,0.08764875,91285.0,91281.0,0.01095518]
[1767529676185,0.08764875,91285.0,91280.0,0.0657318]
[1767529676631,0.0328747,91285.0,91281.0,0.01095518]
[1767529677047,0.02192,91285.0,91282.0,0.01095506]
[1767529677408,0.0328747,91285.0,91281.0,0.01095518]
[1767529677935,0.08764821,91285.0,91281.0,0.01095518]
[1767529678442,0.0328747,91285.0,91281.0,0.01095518]
[1767529678938,0.0328747,91285.0,91281.0,0.06573093]
[1767529679147,0.02192,91285.0,91282.0,0.01095506]
[1767529679303,0.02192,91285.0,91281.0,0.06573093]
[1767529679304,0.0328747,91285.0,91281.0,0.06573093]
[1767529679990,0.0328747,91285.0,91280.0,0.0109553]
[1767529679991,0.02192,91285.0,91280.0,0.06573168]
[1767529680191,0.02192,91285.0,91281.0,0.06573079]
[1767529680538,0.0328747,91285.0,91281.0,0.06573079]
[1767529680729,0.02192,91285.0,91282.0,0.06573033]
[1767529680942,0.02192,91285.0,91282.0,0.01095506]
[1767529681243,0.00984026,91282.0,91280.0,0.06573179]
[1767529681446,0.00884126,91282.0,91281.0,0.05477591]
[1767529681743,0.02192,91285.0,91281.0,0.05477591]
[1767529681744,0.02192,91285.0,91282.0,0.06573012]
[1767529682190,0.02192,91285.0,91282.0,0.06573022]
[1767529682373,0.02192,91285.0,91282.0,0.01095506]
[1767529682815,0.02192,91285.0,91282.0,0.06573012]
[1767529683018,0.02192,91285.0,91282.0,0.01095506]
[1767529683891,0.02183144,91285.0,91281.0,0.06573049]
[1767529684092,0.02183144,91285.0,91282.0,0.06573029]
[1767529684235,0.02183144,91285.0,91278.0,0.18412304]
[1767529684431,0.02183144,91285.0,91282.0,0.01095506]
[1767529684658,0.02183144,91285.0,91278.0,0.18412304]
[1767529684659,0.000999,91282.0,91278.0,0.01095554]
[1767529685134,0.02183144,91285.0,91280.0,0.05477592]
[1767529685779,0.02183144,91285.0,91281.0,0.05477581]
[1767529686078,0.02183144,91285.0,91281.0,0.01095518]
[1767529686373,0.03278614,91285.0,91281.0,0.01095518]
[1767529686672,0.04853637,91284.0,91276.0,0.05477883]
[1767529686903,0.08755974,91285.0,91276.0,0.05477883]
[1767529687313,0.08755974,91285.0,91280.0,0.0547761]
[1767529688173,0.08755974,91285.0,91280.0,0.0657314]
[1767529689014,0.01095482,91284.0,91281.0,0.04530425]
[1767529689215,0.08755974,91285.0,91281.0,0.04530425]
[1767529689632,0.08755974,91285.0,91280.0,0.06573161]
[1767529689830,0.08755974,91285.0,91280.0,0.11103586]
[1767529690209,0.08755974,91285.0,91281.0,0.01095518]
[1767529690415,0.08755974,91285.0,91280.0,0.11103586]
[1767529690580,0.08755974,91285.0,91281.0,0.05625943]
[1767529690777,0.0875598,91285.0,91281.0,0.04530425]
[1767529690980,0.03278614,91285.0,91281.0,0.05625943]
[1767529691233,0.02183144,91285.0,91281.0,0.11103505]
[1767529691613,0.02183144,91285.0,91282.0,0.05625931]
[1767529692043,0.02183144,91285.0,91282.0,0.11103437]
[1767529692402,0.02183144,91285.0,91282.0,0.04530425]
[1767529692607,0.02183144,91285.0,91282.0,0.11103445]
[1767529693410,0.02183144,91285.0,91282.0,0.05625931]
[1767529694159,0.02183144,91285.0,91282.0,0.11103439]
[1767529694525,0.02192,91288.0,91286.0,0.04530425]
[1767529694709,0.05477291,91286.0,91285.0,0.00115874]
[1767529695228,0.01095482,91284.0,91279.0,0.11103661]
[1767529695432,0.06572863,91285.0,91281.0,0.04530425]
[1767529695725,0.01095482,91284.0,91281.0,0.04530425]
[1767529695932,0.06572909,91284.0,91281.0,0.04530425]
[1767529696174,0.01095506,91282.0,91278.0,0.04530425]
[1767529696315,0.06572996,91283.0,91278.0,0.01095554]
[1767529696646,0.06572996,91283.0,91279.0,0.01095542]
[1767529696845,0.06572901,91284.0,91279.0,0.06573235]
[1767529697307,0.06572901,91284.0,91278.0,0.06573273]
[1767529697308,0.06572981,91283.0,91278.0,0.06573273]
[1767529697487,0.06573133,91281.0,91276.0,0.05626003]
[1767529697770,0.06573133,91281.0,91276.0,0.05477884]
[1767529697771,0.00884126,91278.0,91276.0,0.05477884]
[1767529698084,0.06573127,91281.0,91278.0,0.000999]
[1767529698437,0.06573127,91281.0,91276.0,0.01095578]
[1767529698639,0.0109553,91280.0,91276.0,0.06573464]
[1767529698957,0.06573127,91281.0,91276.0,0.06573464]
[1767529699156,0.06573189,91280.0,91276.0,0.05621576]
[1767529699478,0.06573189,91280.0,91276.0,0.04525998]
[1767529699905,0.0109553,91280.0,91276.0,0.11099465]
[1767529700211,0.06573127,91281.0,91276.0,0.11099465]
[1767529701927,0.06573182,91280.0,91276.0,0.05621576]
[1767529702240,0.0109553,91280.0,91276.0,0.11099461]
[1767529702393,0.0109553,91280.0,91276.0,0.05621576]
[1767529702592,0.0109553,91280.0,91276.0,0.11099459]
[1767529703511,0.06573127,91281.0,91276.0,0.11099459]
[1767529703680,0.06573188,91280.0,91276.0,0.05621576]
[1767529703883,0.06573127,91281.0,91276.0,0.05621576]
[1767529704102,0.0109553,91280.0,91276.0,0.05621576]
[1767529704279,0.06573127,91281.0,91276.0,0.11099444]
[1767529704478,0.0109553,91280.0,91276.0,0.11099444]
[1767529704724,0.06573216,91280.0,91275.0,0.06573498]
[1767529705030,0.06573216,91280.0,91276.0,0.01095578]
[1767529705232,0.06573203,91280.0,91276.0,0.01095578]
[1767529705762,0.0109553,91280.0,91276.0,0.0657345]
[1767529706673,0.06573127,91281.0,91276.0,0.0657345]
[1767529706827,0.06573127,91281.0,91277.0,0.04530425]
[1767529707250,0.01095518,91281.0,91277.0,0.11103816]
[1767529707949,0.0657314,91282.0,91277.0,0.11103816]
[1767529708723,0.01095518,91281.0,91277.0,0.11103805]
[1767529710005,0.06573112,91281.0,91277.0,0.04530425]
[1767529710856,0.0109553,91280.0,91277.0,0.04530425]
[1767529711567,0.0109553,91280.0,91277.0,0.04525998]
[1767529712378,0.0109553,91280.0,91276.0,0.0657345]
[1767529712851,0.06573119,91281.0,91277.0,0.01095566]
[1767529713549,0.0657314,91282.0,91278.0,0.06573315]
[1767529713729,0.0657314,91282.0,91278.0,0.01095554]
[1767529713946,0.0657314,91282.0,91277.0,0.0657336]
[1767529714710,0.0657314,91282.0,91276.0,0.06573468]
[1767529714711,0.06573115,91281.0,91276.0,0.06573468]
[1767529715326,0.06573183,91280.0,91276.0,0.06573458]
[1767529717398,0.06573115,91281.0,91277.0,0.01095566]
[1767529717714,0.06573217,91280.0,91275.0,0.06573536]
[1767529717875,0.06573217,91280.0,91276.0,0.06573458]
[1767529718422,0.0109553,91280.0,91276.0,0.06573458]
[1767529718647,0.0109553,91280.0,91276.0,0.06569031]
[1767529718929,0.06573117,91281.0,91276.0,0.06573355]
[1767529720137,0.06573117,91281.0,91277.0,0.06573394]
[1767529720339,0.06573081,91282.0,91281.0,0.000999]
[1767529720340,0.06573046,91282.0,91281.0,0.000999]
[1767529720648,0.06573046,91282.0,91278.0,0.01095554]
[1767529720849,0.01095506,91282.0,91278.0,0.06573314]
[1767529721704,0.06573048,91282.0,91278.0,0.06573314]
[1767529722548,0.06572968,91283.0,91278.0,0.06573314]
[1767529722756,0.01095506,91282.0,91277.0,0.06573394]
[1767529723156,0.01095506,91282.0,91278.0,0.01095554]
[1767529723545,0.06573043,91282.0,91278.0,0.01095554]
[1767529724779,0.06572968,91283.0,91282.0,0.000955]
[1767529724972,0.06572968,91283.0,91282.0,0.00091073]
[1767529725175,0.06572968,91283.0,91278.0,0.06573281]
[1767529725755,0.01095482,91284.0,91279.0,0.06573206]
[1767529725951,0.0109547,91285.0,91284.0,0.00091]
[1767529726178,0.0109547,91285.0,91280.0,0.06573178]
[1767529726910,0.01095482,91284.0,91280.0,0.06573178]
[1767529727105,0.06572899,91284.0,91279.0,0.06573248]
[1767529727304,0.06600674,91285.0,91280.0,0.06573178]
[1767529728207,0.06600674,91285.0,91281.0,0.01095518]
[1767529729855,0.000278,91285.0,91282.0,0.01095506]
[1767529730028,0.000278,91285.0,91281.0,0.06573106]
[1767529730652,0.0112327,91285.0,91281.0,0.06573106]
[1767529730945,0.06600632,91285.0,91280.0,0.06573178]
[1767529731164,0.06600632,91285.0,91281.0,0.06573108]
[1767529731363,8.9e-05,91281.0,91280.0,0.06573178]
[1767529731565,0.01095482,91284.0,91280.0,0.06573178]
[1767529731957,0.06600624,91285.0,91280.0,0.06573178]
[1767529732176,0.000278,91284.0,91281.0,0.06573088]
[1767529732589,0.000278,91284.0,91281.0,0.01095518]
[1767529733695,0.01123282,91284.0,91280.0,0.06573178]
[1767529734597,0.01123282,91284.0,91281.0,0.06573081]
[1767529734598,0.000278,91284.0,91281.0,0.06573081]
[1767529735404,0.000278,91284.0,91281.0,0.01095518]
[1767529735615,0.000278,91284.0,91281.0,0.06573106]
[1767529737217,0.000278,91284.0,91281.0,0.01095518]
[1767529737518,0.000278,91284.0,91280.0,0.06573075]
[1767529738227,0.000278,91284.0,91281.0,0.05477589]
[1767529738436,0.06600701,91284.0,91279.0,0.01095542]
[1767529738652,0.06573011,91283.0,91278.0,0.06573318]
[1767529739164,0.06573161,91281.0,91276.0,0.11246277]
[1767529739315,0.01095518,91281.0,91277.0,0.06573384]
[1767529739650,0.06573051,91282.0,91277.0,0.06573384]
[1767529739954,0.06573051,91282.0,91278.0,0.06573307]
[1767529740135,0.06600851,91282.0,91278.0,0.06573307]
[1767529741157,0.06600851,91282.0,91278.0,0.01095554]
[1767529741562,0.000278,91282.0,91278.0,0.06573313]
[1767529741760,0.000278,91282.0,91278.0,0.01095554]
[1767529741925,0.000278,91282.0,91279.0,0.01095542]
[1767529742136,0.000278,91282.0,91279.0,0.01091116]
[1767529742367,0.000278,91282.0,91278.0,0.06573324]
[1767529742548,0.06600837,91282.0,91277.0,0.06573384]
[1767529742763,0.06600837,91282.0,91278.0,0.01095554]
[1767529743883,0.01123306,91282.0,91278.0,0.06573316]
[1767529744186,0.06600862,91282.0,91277.0,0.06573384]
[1767529744704,0.01123306,91282.0,91278.0,0.06573303]
[1767529745631,0.01123306,91282.0,91278.0,0.01095554]
[1767529745804,0.06600853,91282.0,91278.0,0.01095554]
[1767529746012,0.01123306,91282.0,91278.0,0.06573314]
[1767529747315,0.06572997,91284.0,91282.0,0.000721]
[1767529747515,0.01095494,91283.0,91279.0,0.06573198]
[1767529747680,0.06572997,91284.0,91280.0,0.06573173]
[1767529747877,0.06572997,91284.0,91280.0,0.0109553]
[1767529748082,0.06572997,91284.0,91279.0,0.06573198]
[1767529748359,0.06572925,91285.0,91280.0,0.0109553]
[1767529748523,0.06572925,91285.0,91284.0,0.000721]
[1767529748730,0.06572922,91284.0,91280.0,0.0109553]
[1767529749314,0.06572922,91284.0,91279.0,0.06573198]
[1767529750386,0.01095506,91282.0,91278.0,0.01095554]
[1767529751346,0.06572984,91283.0,91279.0,0.01095542]
[1767529752048,0.06572984,91283.0,91279.0,0.06573233]
[1767529752265,0.06572868,91285.0,91280.0,0.06573076]
[1767529752428,0.06572942,91284.0,91279.0,0.01095542]
[1767529752628,0.06573053,91282.0,91278.0,0.01091128]
[1767529752830,0.01095506,91282.0,91278.0,0.06568898]
[1767529753147,0.01095494,91283.0,91279.0,0.06573245]
[1767529753465,0.01095506,91282.0,91278.0,0.06568898]
[1767529753673,0.06573056,91282.0,91278.0,0.06568898]
[1767529753877,0.01095506,91282.0,91278.0,0.06568898]
[1767529754077,0.06573009,91283.0,91278.0,0.06568898]
[1767529754284,0.06573009,91283.0,91279.0,0.06573252]
[1767529754787,0.01095482,91284.0,91280.0,0.06573069]
[1767529754971,0.065729,91284.0,91283.0,0.000721]
[1767529755279,0.065729,91284.0,91280.0,0.0109553]
[1767529755681,0.065729,91284.0,91279.0,0.06573244]
[1767529756486,0.065729,91284.0,91280.0,0.0109553]
[1767529757386,0.01095494,91283.0,91279.0,0.06573244]
[1767529758587,0.06572894,91284.0,91279.0,0.06573244]
[1767529759188,0.01095482,91284.0,91280.0,0.0109553]
[1767529759568,0.01095494,91283.0,91279.0,0.01095542]
[1767529759763,0.01095482,91284.0,91279.0,0.01095542]
[1767529760081,0.06572901,91284.0,91279.0,0.06573201]
[1767529760265,0.065729,91284.0,91279.0,0.06573201]
[1767529760584,0.06572971,91283.0,91279.0,0.01095542]
[1767529761621,0.01095494,91283.0,91279.0,0.06573239]
[1767529761971,0.01095494,91283.0,91279.0,0.01095542]
[1767529762329,0.01095494,91283.0,91279.0,0.06573245]
[1767529762703,0.065729,91284.0,91280.0,0.06573179]
[1767529762932,0.065729,91284.0,91283.0,0.000677]
[1767529763403,0.01095494,91283.0,91278.0,0.05770077]
[1767529763609,0.06573019,91283.0,91278.0,0.05770077]
[1767529764192,0.01095506,91282.0,91278.0,0.11247829]
[1767529764393,0.06573039,91282.0,91278.0,0.11247829]
[1767529764805,0.01095506,91282.0,91278.0,0.11247829]
[1767529765026,0.06573019,91283.0,91279.0,0.06573245]
[1767529765410,0.06572894,91284.0,91280.0,0.0109553]
[1767529765625,0.06572894,91284.0,91280.0,0.06573158]
[1767529766118,0.06572894,91284.0,91279.0,0.06573245]
[1767529766319,0.06572894,91284.0,91280.0,0.06573175]
[1767529766924,0.06572894,91284.0,91280.0,0.0109553]
[1767529767784,0.06572894,91284.0,91280.0,0.06573166]
[1767529768154,0.01095482,91284.0,91280.0,0.06573166]
[1767529768598,0.06572915,91284.0,91280.0,0.0109553]
[1767529768889,0.06572965,91283.0,91279.0,0.06573245]
[1767529769097,0.06572965,91283.0,91279.0,0.01095542]
[1767529769636,0.06572965,91283.0,91279.0,0.06573235]
[1767529769756,0.06572965,91283.0,91279.0,0.01095542]
[1767529770213,0.06572965,91283.0,91278.0,0.11247843]
[1767529770390,0.06572965,91283.0,91279.0,0.06573252]
[1767529771467,0.01095494,91283.0,91279.0,0.06573252]
[1767529771822,0.06572915,91284.0,91279.0,0.06573235]
[1767529772112,0.06572915,91284.0,91280.0,0.06573179]
[1767529772710,0.06572915,91284.0,91280.0,0.0109553]
[1767529773127,0.06572915,91284.0,91280.0,0.06573167]
[1767529773477,0.06572915,91284.0,91280.0,0.0109553]
[1767529773819,0.06572909,91284.0,91280.0,0.06573151]
[1767529774111,0.06572909,91284.0,91280.0,0.05827408]
[1767529774277,0.06572975,91283.0,91279.0,0.06573235]
[1767529774473,0.06572829,91285.0,91283.0,0.04799578]
[1767529774918,0.06572829,91285.0,91283.0,0.000677]
[1767529775216,0.0547742,91284.0,91279.0,0.06573234]
[1767529775397,0.0657297,91283.0,91279.0,0.06573234]
[1767529776463,0.0657297,91283.0,91279.0,0.01095542]
[1767529776870,0.0657297,91283.0,91279.0,0.06573243]
[1767529777331,0.06572902,91284.0,91280.0,0.0109553]
[1767529778396,0.06572902,91284.0,91280.0,0.06573175]
[1767529778594,0.06572928,91285.0,91281.0,0.06573103]
[1767529778930,0.06572928,91285.0,91284.0,0.000677]
[1767529779288,0.06572928,91285.0,91280.0,0.11305053]
[1767529779789,0.06572904,91284.0,91280.0,0.11305053]
[1767529780207,0.06572893,91284.0,91281.0,0.04731878]
[1767529780439,0.06572928,91285.0,91281.0,0.04731878]
[1767529780643,0.06572912,91284.0,91281.0,0.04731878]
[1767529781254,0.06572912,91284.0,91280.0,0.05827408]
[1767529781964,0.06572912,91284.0,91280.0,0.05818327]
[1767529782476,0.06572912,91284.0,91280.0,0.05827408]
[1767529782629,0.06572912,91284.0,91280.0,0.11305058]
[1767529782967,0.06572829,91285.0,91280.0,0.11305058]
[1767529783260,0.06572895,91284.0,91281.0,0.04731878]
[1767529783417,0.06572829,91285.0,91281.0,0.04731878]
[1767529783618,0.06572912,91284.0,91281.0,0.04731878]
[1767529783834,0.06572912,91284.0,91281.0,0.04699678]
[1767529784069,0.06572912,91284.0,91280.0,0.0109553]
[1767529784277,0.06572912,91284.0,91279.0,0.0657314]
[1767529784431,0.01095482,91284.0,91280.0,0.06573178]
[1767529784868,0.01095482,91284.0,91279.0,0.11305018]
[1767529784869,0.06572926,91284.0,91279.0,0.11305018]
[1767529787070,0.06572926,91284.0,91279.0,0.0657314]
[1767529787382,0.06572926,91284.0,91275.0,0.20900395]
[1767529787712,0.06572966,91283.0,91279.0,0.01095542]
[1767529787892,0.06572966,91283.0,91278.0,0.05827432]
[1767529788028,0.06572966,91283.0,91279.0,0.01095542]
[1767529788227,0.06572974,91283.0,91278.0,0.10209618]
[1767529788431,0.06572974,91283.0,91279.0,0.01095542]
[1767529789946,0.01095482,91284.0,91280.0,0.0109553]
[1767529790165,0.06572918,91284.0,91279.0,0.06573203]
[1767529790366,0.06572989,91283.0,91278.0,0.11305172]
[1767529795564,0.06572989,91283.0,91278.0,0.06573294]
[1767529796518,0.06572899,91284.0,91279.0,0.01095542]
[1767529796673,0.0109547,91285.0,91283.0,0.00206873]
[1767529796874,0.04767041,91284.0,91278.0,0.01095554]
[1767529797344,0.0657287,91285.0,91281.0,0.01095518]
[1767529797550,0.0657287,91285.0,91281.0,0.06573095]
[1767529797761,0.0657287,91285.0,91281.0,0.11304973]
[1767529797948,0.0657287,91285.0,91280.0,0.06573122]
[1767529798247,0.06572893,91284.0,91280.0,0.0109553]
[1767529798746,0.06572893,91284.0,91279.0,0.06573252]
[1767529799821,0.0657287,91285.0,91280.0,0.06573138]
[1767529800232,0.0657287,91285.0,91281.0,0.01095518]
[1767529800756,0.06572899,91284.0,91279.0,0.06573252]
[1767529801056,0.05478071,91273.0,91268.0,0.05478342]
[1767529801217,0.06574119,91267.0,91262.0,0.03287746]
[1767529801424,0.01095674,91268.0,91264.0,0.01095722]
[1767529801624,0.06574013,91269.0,91264.0,0.06574326]
[1767529801824,0.06573877,91271.0,91266.0,0.01095698]
[1767529802055,0.06573979,91269.0,91265.0,0.0109571]
[1767529802355,0.06573979,91269.0,91264.0,0.06574285]
[1767529803311,0.06574047,91268.0,91263.0,0.01095734]
[1767529803510,0.05478437,91267.0,91263.0,0.01095734]
[1767529803714,0.0109571,91265.0,91261.0,0.08766525]
[1767529803945,0.06574263,91265.0,91261.0,0.03287758]
[1767529804261,0.0657409,91268.0,91263.0,0.01095734]
[1767529804466,0.06574121,91267.0,91263.0,0.01095734]
[1767529804787,0.0657409,91268.0,91263.0,0.06574395]
[1767529810634,0.06574568,91261.0,91256.0,0.06574893]
[1767529810813,0.06574621,91260.0,91256.0,0.01095818]
[1767529811690,0.0109577,91260.0,91256.0,0.06574889]
[1767529811896,0.06574626,91260.0,91256.0,0.01095818]
[1767529812301,0.06574698,91259.0,91255.0,0.06574946]
[1767529812785,0.06574626,91260.0,91255.0,0.06574946]
[1767529812931,0.06574551,91261.0,91256.0,0.06574884]
[1767529813106,0.0109577,91260.0,91256.0,0.06574884]
[1767529813305,0.06574653,91260.0,91255.0,0.06574946]
[1767529813523,0.06574709,91259.0,91254.0,0.0547917]
[1767529813738,0.01095782,91259.0,91254.0,0.0547917]
[1767529813952,0.06574556,91261.0,91255.0,0.06574953]
[1767529814749,0.0109577,91260.0,91256.0,0.01095818]
[1767529815130,0.0109577,91260.0,91256.0,0.06574907]
[1767529815334,0.0109577,91260.0,91256.0,0.01095818]
[1767529815757,0.01095782,91259.0,91254.0,0.05773942]
[1767529815921,0.00865562,91258.0,91254.0,0.05773942]
[1767529816275,0.00865562,91258.0,91254.0,0.11253152]
[1767529816453,0.00865562,91258.0,91254.0,0.06575052]
[1767529817620,0.06344547,91258.0,91254.0,0.01095842]
[1767529817818,0.01099899,91254.0,91252.0,0.00283471]
[1767529818009,0.05479271,91253.0,91252.0,0.00283471]
[1767529818216,0.01095854,91253.0,91250.0,0.0469322]
[1767529818360,0.02095841,91254.0,91250.0,0.0578911]
[1767529818560,0.06575088,91255.0,91250.0,0.11268535]
[1767529818802,0.06574923,91256.0,91251.0,0.01095878]
[1767529819004,0.06574923,91256.0,91250.0,0.11268535]
[1767529819005,0.06575029,91255.0,91250.0,0.11268535]
[1767529819411,0.01095806,91257.0,91252.0,0.06575155]
[1767529819791,0.01095818,91256.0,91252.0,0.06575155]
[1767529820009,0.06574914,91256.0,91251.0,0.06575268]
[1767529820217,0.0109583,91255.0,91251.0,0.01095878]
[1767529820548,0.06574914,91256.0,91252.0,0.01095866]
[1767529820932,0.01095818,91256.0,91252.0,0.01095866]
[1767529821137,0.06574932,91256.0,91252.0,0.00010833]
[1767529821670,0.06574951,91256.0,91252.0,0.01106699]
[1767529822251,0.06574944,91257.0,91252.0,0.06586003]
[1767529823091,0.01095818,91256.0,91252.0,0.01106699]
[1767529823481,0.06574914,91256.0,91252.0,0.0658603]
[1767529823660,0.06574914,91256.0,91248.0,0.01100642]
[1767529823861,0.06574914,91256.0,91248.0,0.05778742]
[1767529824180,0.06574914,91256.0,91248.0,0.01100642]
[1767529824483,0.09179483,91256.0,91250.0,0.03970749]
[1767529824659,0.09179483,91256.0,91251.0,0.05479341]
[1767529825273,0.09179483,91256.0,91251.0,0.06575219]
[1767529825274,0.06574914,91256.0,91251.0,0.06575219]
[1767529825914,0.01095818,91256.0,91252.0,0.05479306]
[1767529826141,0.06574944,91257.0,91252.0,0.06575172]
[1767529828103,0.01095794,91258.0,91254.0,0.046781]
[1767529828639,0.01095794,91258.0,91254.0,0.05773942]
[1767529829404,0.01095746,91262.0,91259.0,0.046781]
[1767529829802,0.01095746,91262.0,91256.0,0.05479081]
[1767529830008,0.01095746,91262.0,91257.0,0.05773906]
[1767529830586,0.06574534,91262.0,91258.0,0.05634075]
[1767529831514,0.01095758,91261.0,91258.0,0.04538281]
[1767529832676,0.01095758,91261.0,91257.0,0.01095806]
[1767529832853,0.06574557,91261.0,91256.0,0.1111318]
[1767529833489,0.06574653,91260.0,91256.0,0.04538281]
[1767529833764,0.06574557,91261.0,91256.0,0.04538281]
[1767529833765,0.06574557,91261.0,91256.0,0.1111318]
[1767529834831,0.01095782,91259.0,91256.0,0.04538281]
[1767529835233,0.06574622,91260.0,91256.0,0.04538281]
[1767529835871,0.01095782,91259.0,91256.0,0.04538281]
[1767529836712,0.06574699,91259.0,91256.0,0.04538281]
[1767529837282,0.06574622,91260.0,91256.0,0.04538281]
[1767529838249,0.06574628,91260.0,91257.0,0.04587714]
[1767529838445,0.0109577,91260.0,91257.0,0.04587714]
[1767529839789,0.06574555,91261.0,91257.0,0.0568352]
[1767529840004,0.01096118,91231.0,91224.0,0.04587714]
[1767529840150,0.01096118,91231.0,91222.0,0.01096226]
[1767529840151,0.05480765,91229.0,91225.0,0.04587714]
[1767529840354,0.01096178,91226.0,91223.0,0.02192]
[1767529840561,0.01096178,91226.0,91214.0,0.04602834]
[1767529840562,0.05481375,91218.0,91214.0,0.04602834]
[1767529840784,0.21923848,91225.0,91218.0,0.04587714]
[1767529840785,0.18021158,91221.0,91218.0,0.04587714]
[1767529840951,0.06577761,91218.0,91215.0,0.02192]
[1767529841152,0.01096214,91223.0,91215.0,0.02192]
[1767529841356,0.01096238,91221.0,91215.0,0.0328831]
[1767529841706,0.01096202,91224.0,91218.0,0.01096274]
[1767529841869,0.06577293,91223.0,91217.0,0.01096286]
[1767529842250,0.01096214,91223.0,91217.0,0.01096286]
[1767529842451,0.01096226,91222.0,91217.0,0.06577708]
[1767529842897,0.01096226,91222.0,91218.0,0.01096274]
[1767529843089,0.06577312,91223.0,91218.0,0.01096274]
[1767529843677,0.01096214,91223.0,91219.0,0.01096262]
[1767529843896,0.01096226,91222.0,91218.0,0.01101412]
[1767529844100,0.01096214,91223.0,91219.0,0.01096262]
[1767529844703,0.01096214,91223.0,91218.0,0.06582732]
[1767529845145,0.06577239,91224.0,91219.0,0.01096262]
[1767529845639,0.01096214,91223.0,91218.0,0.06582732]
[1767529846338,0.01096214,91223.0,91219.0,0.01096262]
[1767529846554,0.06577239,91224.0,91219.0,0.06577574]
[1767529846688,0.01096214,91223.0,91219.0,0.01096262]
[1767529847189,0.02187531,91222.0,91218.0,0.06582732]
[1767529847486,0.01096214,91223.0,91218.0,0.06582732]
[1767529847713,0.01096214,91223.0,91219.0,0.01096262]
[1767529847908,0.01096214,91223.0,91218.0,0.06582732]
[1767529847909,0.06577324,91223.0,91218.0,0.01101412]
[1767529848344,0.10015274,91227.0,91221.0,0.01096238]
[1767529848565,0.01096142,91229.0,91223.0,0.06577247]
[1767529849060,0.01096154,91228.0,91223.0,0.01096214]
[1767529849207,0.06576886,91229.0,91224.0,0.06577187]
[1767529849556,0.0109613,91230.0,91225.0,0.0109619]
[1767529849723,0.01096142,91229.0,91224.0,0.06577187]
[1767529850653,0.01087057,91229.0,91224.0,0.06577187]
[1767529850854,0.01077972,91229.0,91224.0,0.06577187]
[1767529851174,0.06558695,91229.0,91224.0,0.06577187]
[1767529851721,0.01096154,91228.0,91224.0,0.00996302]
[1767529852018,0.01096142,91229.0,91224.0,0.06477307]
[1767529852160,0.06576868,91229.0,91224.0,0.06477307]
[1767529852341,0.06576868,91229.0,91224.0,0.00996302]
[1767529852556,0.06576868,91229.0,91223.0,0.01096214]
[1767529852557,0.06576944,91228.0,91223.0,0.01096214]
[1767529853230,0.06576944,91228.0,91224.0,0.02192]
[1767529853532,0.01096166,91227.0,91224.0,0.02192]
[1767529854184,0.01087301,91228.0,91224.0,0.03288202]
[1767529854389,0.01087277,91230.0,91225.0,0.0109619]
[1767529854813,0.01087277,91230.0,91225.0,0.06577112]
[1767529855109,0.06567931,91230.0,91225.0,0.06577112]
[1767529855823,0.01087277,91230.0,91226.0,0.01096178]
[1767529856028,0.0657676,91231.0,91226.0,0.0657706]